lending/lending_fUSD_20240610
["ID","MTS","AMOUNT","RATE_DAILY","PERIOD"]
[328972135,1718034704433,-500.0,0.00029041,4]
[328972136,1718034704443,-726.61,0.00029041,4]
[328972137,1718034704453,-506.91,0.00029041,4]
[328972138,1718034704462,-500.0,0.00029041,4]
[328972139,1718034704472,-500.0,0.00029041,4]
[328972140,1718034704482,-500.0,0.00029041,4]
[328972141,1718034704492,-506.91,0.00029041,4]
[328972142,1718034704502,-500.0,0.00029041,4]
[328972143,1718034704512,-726.79,0.00029041,4]
[328972144,1718034704522,-500.0,0.00029041,4]
[328972145,1718034704533,-500.0,0.00029041,4]
[328972146,1718034704545,-500.0,0.00029041,4]
[328972147,1718034704557,-500.0,0.00029041,4]
[328972148,1718034704567,-506.91,0.00029041,4]
[328972149,1718034704578,-641.90050024,0.00029041,4]
[328972150,1718034704590,-707.9,0.00029041,4]
[328972151,1718034704601,-500.0,0.00029041,4]
[328972152,1718034704611,-500.0,0.00029041,4]
[328972153,1718034704621,-506.91,0.00029041,4]
[328972154,1718034704639,-707.9,0.00029041,4]
[328972155,1718034704650,-500.0,0.00029041,4]
[328972156,1718034704660,-500.0,0.00029041,4]
[328972157,1718034704673,-506.91,0.00029041,4]
[328972158,1718034704683,-707.9,0.00029041,4]
[328972159,1718034704694,-500.0,0.00029041,4]
[328972160,1718034704705,-506.91,0.00029041,4]
[328972161,1718034704715,-343.90107445,0.00029041,4]
[328972162,1718034704725,-500.0,0.00029041,4]
[328972163,1718034704736,-707.9,0.00029041,4]
[328972164,1718034704746,-506.91,0.00029041,4]
[328972165,1718034704756,-500.0,0.00029041,4]
[328972166,1718034704766,-707.9,0.00029041,4]
[328972167,1718034704776,-506.91,0.00029041,4]
[328972168,1718034704786,-500.0,0.00029041,4]
[328972169,1718034704796,-707.9,0.00029041,4]
[328972170,1718034704805,-483.21303645,0.00029041,2]
[328972171,1718034704816,-506.91,0.00029041,4]
[328972172,1718034704826,-500.0,0.00029041,4]
[328972173,1718034704837,-707.9,0.00029041,4]
[328972174,1718034704846,-506.91,0.00029041,4]
[328972175,1718034704856,-500.0,0.00029041,4]
[328972176,1718034704866,-707.9,0.00029041,4]
[328972177,1718034704876,-506.91,0.00029041,4]
[328972178,1718034704894,-1123.07,0.00029041,4]
[328972179,1718034704904,-551.35075578,0.00029041,4]
[328972180,1718034704916,-1462.22,0.00029041,4]
[328972181,1718034704926,-506.91,0.00029041,4]
[328972182,1718034704935,-1123.07,0.00029041,4]
[328972183,1718034704945,-1462.22,0.00029041,4]
[328972184,1718034704955,-707.9,0.00029041,4]
[328972185,1718034704965,-506.91,0.00029041,4]
[328972186,1718034704976,-1123.07,0.00029041,4]
[328972187,1718034704986,-1462.22,0.00029041,4]
[328972188,1718034704998,-707.9,0.00029041,4]
[328972189,1718034705009,-506.91,0.00029041,4]
[328972190,1718034705020,-506.91,0.00029041,4]
[328972191,1718034705030,-1123.07,0.00029041,4]
[328972192,1718034705041,-707.9,0.00029041,4]
[328972193,1718034705059,-506.91,0.00029041,4]
[328972194,1718034705072,-500.0,0.00029041,4]
[328972195,1718034705083,-1123.07,0.00029041,4]
[328972196,1718034705094,-707.9,0.00029041,4]
[328972197,1718034705104,-1462.22,0.00029041,4]
[328972198,1718034705115,-506.91,0.00029041,4]
[328972199,1718034705125,-500.0,0.00029041,4]
[328972200,1718034705144,-1123.07,0.00029041,4]
[328972201,1718034705155,-707.9,0.00029041,4]
[328972202,1718034705165,-1462.22,0.00029041,4]
[328972203,1718034705175,-506.91,0.00029041,4]
[328972204,1718034705186,-1123.07,0.00029041,4]
[328972205,1718034705196,-500.0,0.00029041,4]
[328972206,1718034705206,-707.9,0.00029041,4]
[328972207,1718034705216,-1462.22,0.00029041,4]
[328972208,1718034705227,-506.91,0.00029041,4]
[328972209,1718034705239,-1123.07,0.00029041,4]
[328972210,1718034705249,-707.9,0.00029041,4]
[328972211,1718034705260,-500.0,0.00029041,4]
[328972212,1718034705270,-506.91,0.00029041,4]
[328972213,1718034705280,-1123.07,0.00029041,4]
[328972214,1718034705290,-707.9,0.00029041,4]
[328972215,1718034705299,-500.0,0.00029041,4]
[328972216,1718034705309,-506.91,0.00029041,4]
[328972217,1718034705318,-1462.22,0.00029041,4]
[328972218,1718034705328,-1123.07,0.00029041,4]
[328972219,1718034705338,-500.0,0.00029041,4]
[328972220,1718034705348,-500.0,0.00029041,4]
[328972221,1718034705358,-707.9,0.00029041,4]
[328972222,1718034705368,-506.93,0.00029041,4]
[328972223,1718034705378,-1462.22,0.00029041,4]
[328972224,1718034705393,-1123.07,0.00029041,4]
[328972225,1718034705403,-500.0,0.00029041,4]
[328972226,1718034705413,-500.0,0.00029041,4]
[328972227,1718034705423,-707.9,0.00029041,4]
[328972228,1718034705433,-1462.22,0.00029041,4]
[328972229,1718034705443,-223.48262081,0.00029041,4]
[328972230,1718034705453,-1123.07,0.00029041,4]
[328972231,1718034705463,-500.0,0.00029041,4]
[328972232,1718034705475,-707.9,0.00029041,4]
[328972233,1718034705486,-1462.22,0.00029041,4]
[328972234,1718034705496,-500.0,0.00029041,4]
[328972235,1718034705506,-1123.07,0.00029041,4]
[328972236,1718034705516,-707.9,0.00029041,4]
[328972237,1718034705526,-500.0,0.00029041,4]
[328972238,1718034705537,-1462.22,0.00029041,4]
[328972239,1718034705551,-1123.07,0.00029041,4]
[328972240,1718034705561,-707.9,0.00029041,4]
[328972241,1718034705571,-500.0,0.00029041,4]
[328972242,1718034705582,-500.0,0.00029041,4]
[328972243,1718034705592,-707.9,0.00029041,4]
[328972244,1718034705602,-755.41,0.00029041,4]
[328972245,1718034705611,-1123.07,0.00029041,4]
[328972246,1718034705620,-500.0,0.00029041,4]
[328972247,1718034705637,-500.0,0.00029041,4]
[328972248,1718034705646,-1462.22,0.00029041,4]
[328972249,1718034705656,-707.9,0.00029041,4]
[328972250,1718034705666,-755.41,0.00029041,4]
[328972251,1718034705675,-166.951655,0.00029041,7]
[328972252,1718034705685,-1123.07,0.00029041,4]
[328972253,1718034705695,-500.0,0.00029041,4]
[328972254,1718034705704,-582.8,0.00029041,4]
[328972255,1718034705714,-1462.22,0.00029041,4]
[328972256,1718034705724,-708.1,0.00029041,4]
[328972257,1718034705733,-755.41,0.00029041,4]
[328972258,1718034705744,-500.0,0.00029041,4]
[328972259,1718034705753,-1123.07,0.00029041,4]
[328972260,1718034705763,-500.0,0.00029041,4]
[328972261,1718034705772,-1462.22,0.00029041,4]
[328972262,1718034705782,-500.0,0.00029041,4]
[328972263,1718034705792,-500.0,0.00029041,4]
[328972264,1718034705802,-1123.07,0.00029041,4]
[328972265,1718034705811,-1462.22,0.00029041,4]
[328972266,1718034705821,-500.0,0.00029041,4]
[328972267,1718034705830,-500.0,0.00029041,4]
[328972268,1718034705840,-755.41,0.00029041,4]
[328972269,1718034705849,-1123.07,0.00029041,4]
[328972270,1718034705859,-182.05986979,0.00029041,2]
[328972271,1718034705869,-1462.22,0.00029041,4]
[328972272,1718034705879,-500.0,0.00029041,4]
[328972273,1718034705893,-500.0,0.00029041,4]
[328972274,1718034705904,-1123.07,0.00029041,4]
[328972275,1718034705914,-1462.22,0.00029041,4]
[328972276,1718034705923,-500.0,0.00029041,4]
[328972277,1718034705933,-755.41,0.00029041,4]
[328972278,1718034705943,-1123.07,0.00029041,4]
[328972279,1718034705953,-500.0,0.00029041,4]
[328972280,1718034705962,-1462.22,0.00029041,4]
[328972281,1718034705972,-500.0,0.00029041,4]
[328972282,1718034705983,-755.41,0.00029041,4]
[328972283,1718034705992,-500.0,0.00029041,4]
[328972284,1718034706003,-1462.22,0.00029041,4]
[328972285,1718034706013,-500.0,0.00029041,4]
[328972286,1718034706023,-500.0,0.00029041,4]
[328972287,1718034706033,-1123.07,0.00029041,4]
[328972288,1718034706044,-1462.22,0.00029041,4]
[328972289,1718034706058,-755.41,0.00029041,4]
[328972290,1718034706068,-161.150241,0.00029041,7]
[328972291,1718034706079,-500.0,0.00029041,4]
[328972292,1718034706089,-1123.07,0.00029041,4]
[328972293,1718034706099,-500.0,0.00029041,4]
[328972294,1718034706109,-1462.22,0.00029041,4]
[328972295,1718034706120,-755.41,0.00029041,4]
[328972296,1718034706131,-500.0,0.00029041,4]
[328972297,1718034706146,-162.37300347,0.00029041,4]
[328972298,1718034706156,-1123.1580936,0.00029041,4]
[328972299,1718034706167,-500.0,0.00029041,4]
[328972300,1718034706178,-1462.22,0.00029041,4]
[328972301,1718034706188,-500.0,0.00029041,4]
[328972302,1718034706199,-862.26,0.00029041,4]
[328972303,1718034706209,-755.41,0.00029041,4]
[328972304,1718034706219,-500.0,0.00029041,4]
[328972305,1718034706229,-862.26,0.00029041,4]
[328972306,1718034706239,-500.0,0.00029041,4]
[328972307,1718034706249,-755.41,0.00029041,4]
[328972308,1718034706259,-1462.22,0.00029041,4]
[328972309,1718034706270,-500.0,0.00029041,4]
[328972310,1718034706280,-862.26,0.00029041,4]
[328972311,1718034706291,-500.0,0.00029041,4]
[328972312,1718034706301,-1462.22,0.00029041,4]
[328972313,1718034706311,-755.41,0.00029041,4]
[328972314,1718034706321,-500.0,0.00029041,4]
[328972315,1718034706331,-246.54,0.00029041,4]
[328972316,1718034706341,-862.26,0.00029041,4]
[328972317,1718034706351,-500.0,0.00029041,4]
[328972318,1718034706361,-755.41,0.00029041,4]
[328972319,1718034706371,-500.0,0.00029041,4]
[328972320,1718034706384,-270.55601437,0.00029041,4]
[328972321,1718034706395,-862.26,0.00029041,4]
[328972322,1718034706405,-500.0,0.00029041,4]
[328972323,1718034706415,-500.0,0.00029041,4]
[328972324,1718034706425,-755.41,0.00029041,4]
[328972325,1718034706435,-862.26,0.00029041,4]
[328972326,1718034706444,-500.0,0.00029041,4]
[328972327,1718034706454,-755.41,0.00029041,4]
[328972328,1718034706463,-500.0,0.00029041,2]
[328972329,1718034706473,-862.26,0.00029041,4]
[328972330,1718034706482,-500.0,0.00029041,4]
[328972331,1718034706493,-755.41,0.00029041,4]
[328972332,1718034706502,-745.52,0.00029041,4]
[328972333,1718034706512,-862.26,0.00029041,4]
[328972334,1718034706522,-389.3,0.00029041,4]
[328972335,1718034706532,-755.41,0.00029041,4]
[328972336,1718034706542,-745.52,0.00029041,4]
[328972337,1718034706555,-500.0,0.00029041,2]
[328972338,1718034706565,-862.26,0.00029041,4]
[328972339,1718034706575,-755.41,0.00029041,4]
[328972340,1718034706585,-862.26,0.00029041,4]
[328972341,1718034706596,-745.52,0.00029041,4]
[328972342,1718034706605,-755.41,0.00029041,4]
[328972343,1718034706615,-500.0,0.00029041,2]
[328972344,1718034706625,-745.52,0.00029041,4]
[328972345,1718034706643,-862.26,0.00029041,4]
[328972346,1718034706652,-500.0,0.00029041,4]
[328972347,1718034706662,-755.41,0.00029041,4]
[328972348,1718034706672,-500.0,0.00029041,2]
[328972349,1718034706683,-745.52,0.00029041,4]
[328972350,1718034706692,-500.0,0.00029041,4]
[328972351,1718034706702,-500.0,0.00029041,4]
[328972352,1718034706712,-500.0,0.00029041,2]
[328972353,1718034706722,-862.26,0.00029041,4]
[328972354,1718034706733,-755.41,0.00029041,4]
[328972355,1718034706744,-745.52,0.00029041,4]
[328972356,1718034706754,-500.0,0.00029041,4]
[328972357,1718034706764,-500.0,0.00029041,4]
[328972358,1718034706774,-500.0,0.00029041,2]
[328972359,1718034706785,-862.26,0.00029041,4]
[328972360,1718034706795,-755.41,0.00029041,4]
[328972361,1718034706805,-745.52,0.00029041,4]
[328972362,1718034706816,-500.0,0.00029041,2]
[328972363,1718034706958,-862.26,0.00029041,4]
[328972364,1718034706969,-755.41,0.00029041,4]
[328972365,1718034706980,-862.26,0.00029041,4]
[328972366,1718034706991,-755.41,0.00029041,4]
[328972367,1718034707001,-745.52,0.00029041,4]
[328972368,1718034707012,-500.0,0.00029041,2]
[328972369,1718034707022,-862.26,0.00029041,4]
[328972370,1718034707033,-551.11,0.00029041,4]
[328972371,1718034707043,-755.48871015,0.00029041,4]
[328972372,1718034707057,-745.52,0.00029041,4]
[328972373,1718034707068,-500.0,0.00029041,4]
[328972374,1718034707078,-500.0,0.00029041,2]
[328972375,1718034707088,-862.26,0.00029041,4]
[328972376,1718034707098,-551.11,0.00029041,4]
[328972377,1718034707108,-500.0,0.00029041,2]
[328972378,1718034707119,-745.52,0.00029041,4]
[328972379,1718034707130,-862.26,0.00029041,4]
[328972380,1718034707145,-551.11,0.00029041,4]
[328972381,1718034707155,-500.0,0.00029041,2]
[328972382,1718034707167,-500.0,0.00029041,4]
[328972383,1718034707177,-745.52,0.00029041,4]
[328972384,1718034707188,-551.11,0.00029041,4]
[328972385,1718034707197,-500.0,0.00029041,2]
[328972386,1718034707207,-500.0,0.00029041,4]
[328972387,1718034707217,-745.52,0.00029041,4]
[328972388,1718034707227,-862.26,0.00029041,4]
[328972389,1718034707237,-551.11,0.00029041,4]
[328972390,1718034707246,-500.0,0.00029041,2]
[328972391,1718034707256,-745.52,0.00029041,4]
[328972392,1718034707265,-862.26,0.00029041,4]
[328972393,1718034707274,-551.11,0.00029041,4]
[328972394,1718034707284,-500.0,0.00029041,2]
[328972395,1718034707293,-745.52,0.00029041,4]
[328972396,1718034707303,-500.0,0.00029041,2]
[328972397,1718034707312,-862.26,0.00029041,4]
[328972398,1718034707322,-551.11,0.00029041,4]
[328972399,1718034707332,-500.0,0.00029041,2]
[328972400,1718034707341,-862.26,0.00029041,4]
[328972401,1718034707351,-745.52,0.00029041,4]
[328972402,1718034707360,-551.11,0.00029041,4]
[328972403,1718034707370,-745.52,0.00029041,4]
[328972404,1718034707380,-500.0,0.00029041,2]
[328972405,1718034707393,-551.11,0.00029041,4]
[328972406,1718034707403,-862.26,0.00029041,4]
[328972407,1718034707412,-500.0,0.00029041,2]
[328972408,1718034707422,-745.52,0.00029041,4]
[328972409,1718034707432,-551.11,0.00029041,4]
[328972410,1718034707441,-862.36,0.00029041,4]
[328972411,1718034707451,-745.52,0.00029041,4]
[328972412,1718034707460,-551.11,0.00029041,4]
[328972413,1718034707470,-850.87,0.00029041,2]
[328972414,1718034707479,-833.74,0.00029041,2]
[328972415,1718034707489,-850.87,0.00029041,2]
[328972416,1718034707499,-1201.55077974,0.00029041,2]
[328972417,1718034707509,-91487.44015272,0.00029041,2]
[328972418,1718034707519,-2503.9090947,0.00029041,2]
[328972419,1718034707529,-4896.61,0.00029051,2]
[328972420,1718034707539,-4825.25,0.00029051,2]
[328972421,1718034707552,-4852.19,0.00029051,2]
[328972422,1718034707562,-5000.0,0.00029052,2]
[328972423,1718034707571,-1000.0,0.00029058,14]
[328972424,1718034707583,-50000.0,0.0002907,2]
[328972425,1718034707593,-25000.0,0.00029096,2]
[328972426,1718034707603,-500.0,0.000291,2]
[328972427,1718034707615,-160.28099193,0.00029107,2]
[328972428,1718034707626,-12025.62801062,0.0002913,10]
[328972429,1718034707642,-168.44763137,0.00029134,2]
[328972430,1718034707652,-2100.0,0.00029154,2]
[328972431,1718034707662,-417.254,0.00029154,2]
[328972432,1718034707671,-795.14,0.00029178,2]
[328972433,1718034707681,-500.0,0.000292,2]
[328972434,1718034707690,-156.04544168,0.00029225,2]
[328972435,1718034707700,-153.70819957,0.00029226,2]
[328972436,1718034707710,-2500.0,0.00029235,2]
[328972437,1718034707721,-25000.0,0.00029244,2]
[328972438,1718034707732,-5000.0,0.0002926,2]
[328972439,1718034707742,-500.0,0.00029292,3]
[328972440,1718034707752,-160.0,0.00029299,2]
[328972441,1718034707762,-500.0,0.000293,2]
[328972442,1718034707771,-1014.5,0.000293,2]
[328972443,1718034707781,-313.7,0.000293,2]
[328972444,1718034707792,-500.0,0.00029301,3]
[328972445,1718034707801,-600.0,0.00029302,8]
[328972446,1718034707811,-500.0,0.00029307,3]
[328972447,1718034707821,-319.55102111,0.00029308,3]
[328972448,1718034707831,-500.0,0.0002931,3]
[328972449,1718034707841,-12727.1978259,0.0002931,3]
[328972450,1718034707851,-500.0,0.0002931,3]
[328972451,1718034707861,-18691.98424651,0.00029344,3]
[328972452,1718034707872,-153.20104652,0.0002935,2]
[328972453,1718034707885,-5800.0,0.00029386,2]
[328972454,1718034707897,-1000.0,0.0002939,14]
[328972455,1718034707907,-166.90626717,0.0002939,2]
[328972456,1718034707917,-5800.0,0.00029395,2]
[328972457,1718034707928,-150.0,0.00029399,7]
[328972458,1718034707938,-2000.0,0.000294,2]
[328972459,1718034707948,-600.0,0.000294,8]
[328972460,1718034707957,-132645.0,0.000294,2]
[328972461,1718034707967,-154.0,0.000294,8]
[328972462,1718034707977,-500.0,0.000294,2]
[328972463,1718034707987,-4562.6,0.000294,2]
[328972464,1718034707998,-3807.97,0.000294,2]
[328972465,1718034708007,-691.0,0.000294,2]
[328972466,1718034708017,-5800.0,0.00029403,2]
[328972467,1718034708027,-5000.0,0.00029435,2]
[328972468,1718034708036,-184.3603249,0.00029458,2]
[328972469,1718034708048,-154.6922437,0.0002947,2]
[328972470,1718034708062,-5000.0,0.00029475,2]
[328972471,1718034708072,-322800.0,0.0002948,2]
[328972472,1718034708081,-208.0,0.0002948,2]
[328972473,1718034708092,-325.54236697,0.00029481,2]
[328972474,1718034708102,-150.0,0.00029485,2]
[328972475,1718034708112,-209.0,0.00029486,2]
[328972476,1718034708122,-209.0,0.00029486,2]
[328972477,1718034708136,-209.0,0.00029486,2]
[328972478,1718034708146,-211.0,0.00029486,2]
[328972479,1718034708156,-10414.71692281,0.00029486,2]
[328972480,1718034708166,-151225.72935301,0.00029489,2]
[328972481,1718034708176,-203.0,0.00029489,2]
[328972482,1718034708186,-207.0,0.00029489,2]
[328972483,1718034708196,-33944.46426713,0.00029489,2]
[328972484,1718034708206,-151.0,0.00029489,7]
[328972485,1718034708215,-897.75,0.00029498,2]
[328972486,1718034708225,-500.0,0.000295,2]
[328972487,1718034708235,-226.78247863,0.000295,3]
[328972488,1718034708245,-250.0,0.000295,2]
[328972489,1718034708255,-1224.914713,0.000295,2]
[328972490,1718034708265,-150.0,0.000295,6]
[328972491,1718034708275,-166.66666666,0.00029543,2]
[328972492,1718034708286,-21063.3084605,0.00029583,2]
[328972493,1718034708296,-153.20104652,0.00029584,2]
[328972494,1718034708305,-54356.31,0.00029589,2]
[328972495,1718034708315,-155.2858098,0.00029589,7]
[328972496,1718034708324,-320.277192,0.00029589,14]
[328972497,1718034708334,-557625.98783,0.0002959,2]
[328972498,1718034708344,-155.49037544,0.00029595,2]
[328972499,1718034708354,-115713.50718965,0.00029597,8]
[328972500,1718034708364,-203.45287372,0.00029598,2]
[328972501,1718034708374,-155.64006224,0.00029598,2]
[328972502,1718034708389,-155.33367288,0.00029598,2]
[328972503,1718034708399,-334.11654463,0.00029598,2]
[328972504,1718034708409,-155.0,0.00029598,2]
[328972505,1718034708419,-304.5989442,0.00029598,2]
[328972506,1718034708428,-155.20156601,0.00029598,2]
[328972507,1718034708437,-2309.56445021,0.00029598,2]
[328972508,1718034708446,-155.54124141,0.00029598,2]
[328972509,1718034708456,-155.0,0.00029598,2]
[328972510,1718034708465,-155.21929113,0.00029598,2]
[328972511,1718034708475,-170.91947149,0.00029598,2]
[328972512,1718034708485,-155.49683224,0.00029598,2]
[328972513,1718034708495,-155.60142893,0.00029598,2]
[328972514,1718034708504,-3130.019957,0.00029598,2]
[328972515,1718034708513,-296.03551099,0.00029598,2]
[328972516,1718034708523,-216.79164125,0.00029598,2]
[328972517,1718034708532,-162.35468145,0.00029598,2]
[328972518,1718034708544,-156.70564455,0.00029598,2]
[328972519,1718034708555,-472.64083293,0.00029598,2]
[328972520,1718034708565,-4175.18689802,0.00029598,2]
[328972521,1718034708575,-228.21076762,0.00029598,2]
[328972522,1718034708585,-2015.81369186,0.00029598,2]
[328972523,1718034708596,-155.17529806,0.00029598,2]
[328972524,1718034708605,-251149.51472411,0.000296,2]
[328972525,1718034708615,-4531.87870603,0.000296,3]
[328972526,1718034708626,-1837.37207,0.000296,2]
[328972527,1718034708643,-160.09640065,0.00029662,2]
[328972528,1718034708653,-5000.0,0.00029676,2]
[328972529,1718034708663,-10414.71692281,0.00029697,2]
[328972530,1718034708673,-11666.31250693,0.000297,2]
[328972531,1718034708682,-4000.0,0.000297,2]
[328972532,1718034708692,-4000.0,0.000297,2]
[328972533,1718034708702,-4000.0,0.000297,2]
[328972534,1718034708711,-2878.0327,0.000297,2]
[328972535,1718034708721,-151.0,0.000297,2]
[328972536,1718034708731,-4000.0,0.000297,2]
[328972537,1718034708741,-2449.829427,0.000297,2]
[328972538,1718034708751,-308.56410811,0.00029721,7]
[328972539,1718034708760,-1000.0,0.00029722,14]
[328972540,1718034708770,-308.56410811,0.0002975,7]
[328972541,1718034708780,-308.56410811,0.00029799,7]
[328972542,1718034708790,-155.0,0.000298,2]
[328972543,1718034708800,-7165.6705962,0.000298,2]
[328972544,1718034708809,-545.50339009,0.000298,5]
[328972545,1718034708819,-583.52156246,0.000298,14]
[328972546,1718034708829,-13511.3983527,0.000298,3]
[328972547,1718034708838,-14571.0,0.000298,7]
[328972548,1718034708848,-1929.02206364,0.000298,3]
[328972549,1718034708859,-74011.23422704,0.000298,2]
[328972550,1718034708870,-3062.286784,0.000298,2]
[328972551,1718034708880,-4287.201498,0.000298,2]
[328972552,1718034708896,-4899.658855,0.000298,30]
[328972553,1718034708906,-3631.71,0.000298,3]
[328972554,1718034708916,-3631.71,0.000298,3]
[328972555,1718034708927,-3631.71,0.000298,3]
[328972556,1718034708937,-3631.71,0.000298,3]
[328972557,1718034708947,-3631.71,0.000298,3]
[328972558,1718034708957,-3631.71,0.000298,3]
[328972559,1718034708968,-3631.71,0.000298,3]
[328972560,1718034708978,-3631.71,0.000298,3]
[328972561,1718034708988,-3631.71,0.000298,3]
[328972562,1718034708998,-3631.71,0.000298,3]
[328972563,1718034709008,-3631.71,0.000298,3]
[328972564,1718034709018,-3631.71,0.000298,3]
[328972565,1718034709028,-3631.71,0.000298,3]
[328972566,1718034709038,-3631.71,0.000298,3]
[328972567,1718034709051,-3631.71,0.000298,3]
[328972568,1718034709064,-3631.71,0.000298,3]
[328972569,1718034709074,-3631.71,0.000298,3]
[328972570,1718034709085,-184.3603249,0.00029805,2]
[328972571,1718034709094,-8252.59167054,0.00029806,2]
[328972572,1718034709104,-5000.0,0.00029806,2]
[328972573,1718034709114,-5000.0,0.00029806,2]
[328972574,1718034709125,-5000.0,0.00029806,2]
[328972575,1718034709140,-5000.0,0.00029806,2]
[328972576,1718034709150,-874.9322115,0.0002981,2]
[328972577,1718034709161,-160.09640065,0.00029816,2]
[328972578,1718034709171,-2500.0,0.00029842,2]
[328972579,1718034709181,-184.3603249,0.00029871,2]
[328972580,1718034709191,-2408.84,0.00029889,2]
[328972581,1718034709201,-4059.8916,0.00029899,2]
[328972582,1718034709211,-4000.0,0.00029899,2]
[328972583,1718034709221,-4000.0,0.00029899,2]
[328972584,1718034709231,-371.88,0.000299,13]
[328972585,1718034709241,-157.24411463,0.000299,2]
[328972586,1718034709252,-349.82303753,0.000299,15]
[328972587,1718034709262,-75928.89722311,0.000299,11]
[328972588,1718034709272,-9547.71355757,0.000299,2]
[328972589,1718034709282,-720.97337774,0.000299,2]
[328972590,1718034709292,-1138.96986867,0.000299,2]
[328972591,1718034709302,-153.20104652,0.00029926,2]
[328972592,1718034709312,-157.061016,0.00029938,24]
[328972593,1718034709322,-157.061016,0.00029938,22]
[328972594,1718034709331,-157.061016,0.00029938,20]
[328972595,1718034709341,-161.061016,0.00029938,20]
[328972596,1718034709351,-157.061016,0.00029948,20]
[328972597,1718034709361,-157.061016,0.00029948,24]
[328972598,1718034709370,-157.061011,0.00029948,22]
[328972599,1718034709382,-184.3603249,0.00029949,2]
[328972600,1718034709395,-404.39759482,0.0002997,2]
[328972601,1718034709406,-462.41261257,0.0002997,2]
[328972602,1718034709416,-1367.2451648,0.00029979,2]
[328972603,1718034709426,-1631.8732613,0.00029979,2]
[328972604,1718034709437,-1896.5013577,0.00029979,2]
[328972605,1718034709447,-2161.1294541,0.00029979,2]
[328972606,1718034709457,-2425.7575506,0.00029979,2]
[328972607,1718034709467,-21104.1292934,0.00029979,2]
[328972608,1718034709478,-25188.7994792,0.00029979,2]
[328972609,1718034709488,-29273.4696651,0.00029979,2]
[328972610,1718034709499,-33358.1398509,0.00029979,2]
[328972611,1718034709509,-37442.8100367,0.00029979,2]
[328972612,1718034709518,-11413.3943593,0.00029979,2]
[328972613,1718034709528,-13592.1282453,0.00029979,2]
[328972614,1718034709537,-15770.8621312,0.00029979,2]
[328972615,1718034709548,-17949.5960171,0.00029979,2]
[328972616,1718034709560,-20128.3299031,0.00029979,2]
[328972617,1718034709570,-1341.2867087,0.00029979,2]
[328972618,1718034709580,-1442.7210307,0.00029979,2]
[328972619,1718034709590,-1544.1553527,0.00029979,2]
[328972620,1718034709600,-1645.5896746,0.00029979,2]
[328972621,1718034709610,-1747.0239966,0.00029979,2]
[328972622,1718034709619,-1080.906504,0.00029979,2]
[328972623,1718034709632,-1162.6496672,0.00029979,2]
[328972624,1718034709646,-1244.3928304,0.00029979,2]
[328972625,1718034709656,-1326.1359936,0.00029979,2]
[328972626,1718034709666,-1407.8791569,0.00029979,2]
[328972627,1718034709675,-2511.6342753,0.00029979,2]
[328972628,1718034709685,-2701.5757085,0.00029979,2]
[328972629,1718034709695,-2891.5171417,0.00029979,2]
[328972630,1718034709705,-3081.4585749,0.00029979,2]
[328972631,1718034709714,-3271.4000081,0.00029979,2]
[328972632,1718034709724,-1412.3442319,0.00029979,2]
[328972633,1718034709735,-1519.1522534,0.00029979,2]
[328972634,1718034709744,-1625.9602749,0.00029979,2]